bitfinex/quotes_ETHUSD_20251008
["timestamp","ask_amount","ask_price","bid_price","bid_amount"]
[1759893125578,27.36218168,4467.2,4466.8,0.1112]
[1759893125939,27.81788168,4467.2,4466.8,0.1112]
[1759893126138,25.579343,4467.2,4466.8,0.1112]
[1759893127448,27.81788168,4467.2,4466.8,0.1112]
[1759893128282,25.579343,4467.2,4466.8,0.1112]
[1759893128455,1.92,4467.2,4466.8,0.1112]
[1759893129066,1.92,4467.2,4466.8,0.12244008]
[1759893129854,1.92,4467.2,4466.8,0.01124008]
[1759893130078,1.92,4467.2,4467.1,0.1212]
[1759893130375,1.92,4467.2,4467.1,0.13243983]
[1759893130969,1.92,4467.2,4467.1,0.1212]
[1759893131980,1.92,4467.2,4467.1,2.35978879]
[1759893132555,1.92,4467.2,4467.1,2.57708879]
[1759893133455,1.92,4467.2,4467.1,2.35978879]
[1759893134377,0.02797672,4468.0,4467.1,3.09396629]
[1759893134594,0.1112,4468.2,4467.6,0.1112]
[1759893134796,3.486,4468.6,4468.0,0.1112]
[1759893134992,0.4557,4468.8,4468.0,0.1112]
[1759893134993,23.203643,4468.8,4468.1,0.1224253]
[1759893135291,1.92,4468.9,4468.1,2.36050663]
[1759893135581,0.02797171,4468.8,4468.1,0.1224253]
[1759893135755,2.23970477,4468.9,4468.1,0.1224253]
[1759893135955,0.02797171,4468.8,4468.1,0.1224253]
[1759893136160,2.23970477,4468.9,4468.1,0.1224253]
[1759893136360,2.26571527,4468.8,4468.1,0.1224253]
[1759893136560,0.002,4468.9,4468.1,0.1224253]
[1759893136761,0.002,4468.9,4468.6,0.1112]
[1759893136962,0.002,4468.9,4468.7,2.2489924]
[1759893137390,0.002,4468.9,4468.7,0.01121929]
[1759893139395,0.002,4468.9,4468.6,0.1112]
[1759893144165,0.002,4468.9,4468.7,0.01121929]
[1759893145160,0.002,4468.9,4468.8,0.1112]
[1759893146501,0.002,4468.9,4468.8,2.6372]
[1759893149002,0.002,4468.9,4468.8,17.1372]
[1759893151220,0.002,4468.9,4468.8,2.6372]
[1759893151402,2.23780563,4468.7,4468.4,2.526]
[1759893151602,5.39250479,4468.7,4468.4,2.526]
[1759893151804,0.4404,4468.6,4468.4,2.526]
[1759893152303,2.67824171,4468.6,4468.4,2.526]
[1759893153197,0.4404,4468.6,4468.4,2.526]
[1759893153999,5.36451953,4468.7,4468.4,2.526]
[1759893154201,1.92,4468.7,4468.6,0.001]
[1759893158701,4.15778727,4468.7,4468.6,0.001]
[1759893158914,4.59818727,4468.7,4468.6,0.001]
[1759893160708,27.80183027,4468.7,4468.6,0.001]
[1759893162545,28.48389872,4468.7,4468.6,0.001]
[1759893166751,5.28025572,4468.7,4468.6,0.001]
[1759893166919,28.48389872,4468.7,4468.6,0.001]
[1759893167362,29.07513062,4468.7,4468.6,0.001]
[1759893167515,28.48389872,4468.7,4468.6,0.001]
[1759893168264,34.13662554,4468.7,4468.6,0.001]
[1759893169029,34.90879395,4468.7,4468.6,0.001]
[1759893169429,35.50296478,4468.7,4468.6,0.001]
[1759893170149,34.90879395,4468.7,4468.6,0.001]
[1759893171816,11.70515095,4468.7,4468.6,0.001]
[1759893172021,34.90879395,4468.7,4468.6,0.001]
[1759893173451,32.38279395,4468.7,4468.6,0.001]
[1759893173643,34.90879395,4468.7,4468.6,0.001]
[1759893175950,11.70515095,4468.7,4468.6,0.001]
[1759893176128,34.90879395,4468.7,4468.6,0.001]
[1759893178358,28.04349872,4468.7,4468.6,0.001]
[1759893179138,28.49489872,4468.7,4468.6,0.001]
[1759893180255,2.60206845,4468.7,4468.6,0.001]
[1759893180454,4.36422186,4468.7,4468.6,0.1122]
[1759893180657,28.0472372,4468.7,4468.6,0.001]
[1759893180954,31.02029521,4468.7,4468.6,0.001]
[1759893181159,31.13149521,4468.7,4468.6,0.001]
[1759893182258,31.61446604,4468.7,4468.6,0.001]
[1759893183148,8.41082304,4468.7,4468.6,0.001]
[1759893183355,31.61446604,4468.7,4468.6,0.001]
[1759893184167,32.24806604,4468.7,4468.6,0.001]
[1759893184375,31.65389521,4468.7,4468.6,0.001]
[1759893186740,32.44505817,4468.7,4468.6,0.001]
[1759893190363,32.44505817,4468.7,4466.1,0.01]
[1759893190364,1.9776,4468.3,4466.1,0.01]
[1759893190569,6.13793512,4466.2,4466.1,0.01]
[1759893190743,31.26157812,4466.2,4466.1,0.01]
[1759893190943,31.71297812,4466.2,4466.1,0.01]
[1759893191145,25.575043,4466.2,4466.1,0.01]
[1759893191466,27.81408289,4466.2,4466.1,0.01]
[1759893192148,12.322,4466.2,4466.1,0.01]
[1759893192345,1.92,4466.2,4466.1,0.01]
[1759893193070,1.92,4466.7,4466.1,0.3385]
[1759893193268,1.92,4466.7,4466.2,0.0112491]
[1759893193570,1.94798486,4466.7,4466.2,0.0112491]
[1759893193961,2.2388517,4466.6,4466.2,0.0112491]
[1759893194145,14.447,4466.8,4466.2,0.0112491]
[1759893194146,2.23879667,4466.7,4466.2,0.0112491]
[1759893194745,2.23885138,4466.6,4466.2,0.0112491]
[1759893194968,14.15878857,4466.8,4466.1,0.1212]
[1759893195147,2.23880191,4466.7,4466.2,0.01125087]
[1759893195341,0.1112,4467.0,4466.2,0.01125087]
[1759893195543,23.203643,4466.9,4466.5,0.1112]
[1759893195747,1.92,4466.8,4466.5,0.1112]
[1759893197047,2.26671773,4466.9,4466.5,0.1112]
[1759893197279,1.92,4466.8,4466.5,0.1112]
[1759893197570,4.15874665,4466.8,4466.5,0.1112]
[1759893197778,2.23874665,4466.8,4466.5,0.1112]
[1759893198184,4.15874665,4466.8,4466.5,0.1112]
[1759893198348,2.23874665,4466.8,4466.5,0.1112]
[1759893198547,4.15874665,4466.8,4466.5,0.1112]
[1759893198758,2.23874665,4466.8,4466.5,0.1112]
[1759893198954,10.02798361,4466.9,4466.5,0.1112]
[1759893199169,2.23878926,4466.7,4466.5,0.1112]
[1759893199873,0.4514,4466.7,4466.5,0.1112]
[1759893200173,0.4589,4466.6,4466.5,0.1112]
[1759893200479,2.69773938,4466.6,4466.5,0.1112]
[1759893200776,2.23873436,4466.9,4466.5,0.1112]
[1759893200979,2.23874751,4466.8,4466.5,0.1112]
[1759893201184,2.69764751,4466.8,4466.5,0.1112]
[1759893201349,2.23879344,4466.7,4466.5,0.1112]
[1759893201749,2.69769344,4466.7,4466.5,0.1112]
[1759893202080,0.4589,4466.6,4466.5,0.1112]
[1759893202577,0.4589,4466.6,4466.3,0.1112]
[1759893202578,2.23894092,4466.4,4466.3,0.1112]
[1759893202764,2.23894092,4466.4,4466.1,0.01]
[1759893202765,2.72582766,4466.4,4466.1,0.01]
[1759893202966,2.26692766,4466.4,4466.1,0.01]
[1759893203174,0.4589,4466.3,4466.1,0.01]
[1759893203358,6.13793512,4466.2,4466.1,0.01]
[1759893203559,4.35779523,4466.2,4466.1,0.01]
[1759893204078,2.69793989,4466.2,4466.1,0.01]
[1759893204677,25.90158289,4466.2,4466.1,0.01]
[1759893205554,29.80047812,4466.2,4466.1,0.01]
[1759893207557,32.32747812,4466.2,4466.1,0.01]
[1759893209160,2.59279583,4467.2,4466.1,0.01]
[1759893209161,1.92,4466.6,4466.1,0.01]
[1759893209381,4.15879058,4466.7,4466.1,0.2273]
[1759893209754,4.15879058,4466.7,4466.1,0.01]
[1759893209955,2.23879058,4466.7,4466.1,0.01]
[1759893210168,2.238841,4466.6,4466.1,0.01]
[1759893210486,2.238841,4466.6,4466.1,0.011]
[1759893211683,0.1112,4466.8,4466.1,0.011]
[1759893211985,2.877,4466.8,4466.5,0.1112]
[1759893212186,4.1586389,4467.0,4466.5,0.1112]
[1759893212371,1.92,4466.7,4466.5,0.1112]
[1759893212575,1.92,4466.8,4466.5,0.1112]
[1759893212769,11.92,4466.8,4466.5,0.1112]
[1759893212985,1.92,4466.8,4466.5,0.1112]
[1759893213283,33.203643,4466.8,4466.5,0.1112]
[1759893213471,2.23870402,4466.9,4466.5,0.1112]
[1759893213671,2.014,4466.9,4466.5,0.1112]
[1759893213865,1.922,4467.1,4466.8,0.1112]
[1759893214062,4.66341773,4467.1,4466.8,0.1112]
[1759893214376,4.16059412,4467.1,4466.8,0.1112]
[1759893214574,1.922,4467.1,4466.8,0.1112]
[1759893214773,2.23868902,4466.9,4466.8,0.1112]
[1759893215072,4.15868902,4466.9,4466.8,0.1112]
[1759893215258,2.69758902,4466.9,4466.8,0.1112]
[1759893215871,1.922,4467.1,4466.8,0.1112]
[1759893216072,2.23864766,4467.0,4466.8,0.1112]
[1759893216386,2.23868161,4467.0,4466.8,0.1112]
[1759893216680,4.16058978,4467.1,4466.8,0.1112]
[1759893216866,0.66507501,4467.0,4466.8,0.1112]
[1759893217068,2.23868902,4466.9,4466.8,0.1112]
[1759893217381,2.23873914,4466.8,4466.1,0.011]
[1759893217580,2.23883938,4466.6,4466.3,0.1112]
[1759893217954,2.69773938,4466.6,4466.3,0.1112]
[1759893218159,2.69780189,4466.5,4466.3,0.1112]
[1759893218974,0.4589,4466.5,4466.3,0.1112]
[1759893219289,2.23884824,4466.6,4466.3,0.1112]
[1759893219484,2.26677669,4466.7,4466.3,0.1112]
[1759893219996,0.002,4467.1,4466.4,0.0112476]
[1759893220197,0.002,4467.1,4467.0,0.1112]
[1759893220992,2.24058879,4467.1,4467.0,0.1112]
[1759893221169,0.002,4467.1,4467.0,0.1112]
[1759893222598,2.24058879,4467.1,4467.0,0.1112]
[1759893222904,4.66097114,4467.1,4467.0,0.1112]
[1759893223098,4.63298879,4467.1,4467.0,0.1112]
[1759893223697,28.0430221,4467.1,4467.0,0.1112]
[1759893223999,2.23878926,4466.7,4466.6,0.1112]
[1759893224194,25.44243226,4466.7,4466.6,0.1112]
[1759893224368,2.23884217,4466.6,4466.2,0.1112]
[1759893224571,2.73918257,4466.7,4466.2,0.1112]
[1759893224771,2.23884879,4466.6,4466.2,0.1112]
[1759893225384,16.002,4466.7,4466.3,0.01124936]
[1759893225591,0.1112,4466.9,4466.3,0.01124936]
[1759893225876,2.527,4466.8,4466.3,0.01124936]
[1759893226373,2.2388447,4466.6,4466.3,0.01124936]
[1759893227884,2.23875075,4466.8,4466.3,0.01124936]
[1759893228084,2.23878043,4466.8,4466.3,0.01124936]
[1759893228284,2.23884248,4466.6,4466.4,0.1112]
[1759893229796,2.23878143,4466.8,4466.4,0.1112]
[1759893230203,1.92,4466.9,4466.4,0.1112]
[1759893230379,2.39552643,4466.9,4466.4,0.1112]
[1759893230780,2.23881102,4466.7,4466.4,0.1112]
[1759893231777,13.13018178,4467.0,4466.4,0.1112]
[1759893231980,2.23879524,4466.7,4466.4,0.1112]
[1759893232887,2.2388451,4466.6,4466.4,0.1112]
[1759893234081,0.002,4467.1,4466.4,0.1112]
[1759893234288,4.15870919,4466.9,4466.4,0.1112]
[1759893234585,0.2064669,4466.8,4466.4,0.3285]
[1759893234787,0.002,4467.1,4466.4,0.3285]
[1759893234788,0.002,4467.1,4466.5,0.22854735]
[1759893235007,0.002,4467.1,4466.7,0.1112]
[1759893235314,0.002,4467.1,4466.8,2.24997244]
[1759893235484,0.002,4467.1,4467.0,0.1112]
[1759893237611,0.002,4467.1,4467.0,2.57837948]
[1759893238017,0.002,4467.1,4467.0,2.93765513]
[1759893239199,0.002,4467.1,4467.0,5.46465513]
[1759893240111,0.002,4467.1,4467.0,19.96465513]
[1759893241507,0.002,4467.1,4467.0,17.72601623]
[1759893241714,0.002,4467.1,4467.0,19.96465513]
[1759893242902,0.002,4467.1,4467.0,17.027]
[1759893243219,0.002,4467.1,4467.0,2.527]
[1759893243424,0.002,4467.1,4467.0,2.53824058]
[1759893244833,0.002,4467.1,4467.0,4.77687948]
[1759893245025,0.002,4467.1,4467.0,4.7656389]
[1759893245338,0.002,4467.1,4467.0,5.70511075]
[1759893248124,0.002,4467.1,4467.0,5.81631075]
[1759893248429,0.002,4467.1,4467.0,5.70511075]
[1759893250009,0.002,4467.1,4467.0,5.48781075]
[1759893250209,0.002,4467.1,4467.0,5.70511075]
[1759893255444,0.002,4467.1,4467.0,8.25871075]
[1759893256841,0.002,4467.1,4467.0,11.38889253]
[1759893258238,0.002,4467.1,4467.0,11.50009253]
[1759893262841,0.002,4468.0,4467.9,2.23818796]
[1759893263040,0.002,4468.0,4467.9,8.01679905]
[1759893263271,0.002,4468.0,4467.9,8.22286974]
[1759893263549,0.002,4468.0,4467.9,8.85646974]
[1759893264625,0.002,4468.0,4467.9,10.77646974]
[1759893264833,0.002,4468.0,4467.9,12.08929754]
[1759893265681,0.002,4468.0,4467.9,29.71947932]
[1759893266165,0.002,4468.0,4467.9,24.15290738]
[1759893266339,0.002,4468.0,4467.9,29.71947932]
[1759893266537,0.002,4468.0,4467.9,27.19347932]
[1759893266758,0.002,4468.0,4467.9,29.71947932]
[1759893267551,0.002,4469.1,4468.8,2.8713372]
[1759893267751,0.002,4469.1,4468.8,9.04865194]
[1759893267953,0.002,4469.1,4468.8,9.3659339]
[1759893268480,0.002,4469.1,4468.8,23.8659339]
[1759893269353,0.002,4469.1,4468.8,25.7859339]
[1759893271876,0.002,4469.2,4468.9,2.5536]
[1759893271877,1e-08,4469.2,4468.9,2.5536]
[1759893272081,1e-08,4469.2,4469.1,5.05018178]
[1759893272392,1e-08,4469.2,4469.1,7.39896876]
[1759893272600,1e-08,4469.2,4469.1,21.89896876]
[1759893272805,1e-08,4469.2,4469.1,22.11626876]
[1759893273007,1e-08,4469.2,4469.1,24.36803921]
[1759893274102,1e-08,4469.2,4469.1,21.23785743]
[1759893274284,1e-08,4469.2,4469.1,22.47645743]
[1759893274686,1e-08,4469.2,4469.1,17.08027045]
[1759893274872,1e-08,4469.2,4469.1,14.6112]
[1759893275391,1e-08,4469.2,4469.1,17.1362]
[1759893276393,1e-08,4469.2,4469.1,19.59108698]
[1759893277278,1e-08,4469.2,4469.1,17.3535]
[1759893277490,1e-08,4469.2,4469.1,17.1362]
[1759893277871,1e-08,4469.2,4469.1,14.6112]
[1759893278071,1e-08,4469.2,4469.1,0.1112]
[1759893278290,2.67193692,4469.2,4469.1,0.1112]
[1759893279980,1e-08,4469.2,4469.1,2.6382]
[1759893280221,1e-08,4469.2,4469.1,2.8555]
[1759893280583,1e-08,4469.2,4469.1,2.86671428]
[1759893280789,1e-08,4469.2,4469.1,2.6382]
[1759893284686,5.8421187,4469.2,4469.1,2.6382]
[1759893285487,5.8421187,4469.2,4469.1,2.6392]
[1759893285890,5.8421187,4469.2,4469.1,0.001]
[1759893286110,27.83557992,4469.2,4469.1,0.001]
[1759893290995,31.73306065,4469.2,4469.1,0.001]
[1759893291595,8.52941765,4469.2,4469.1,0.001]
[1759893291797,31.73306065,4469.2,4469.1,0.001]
[1759893292530,31.93907502,4469.2,4469.1,0.001]
[1759893293099,31.73306065,4469.2,4469.1,0.001]
[1759893294235,34.26106065,4469.2,4469.1,0.001]
[1759893294729,11.05741765,4469.2,4469.1,0.001]
[1759893294937,34.26106065,4469.2,4469.1,0.001]
[1759893295235,30.39141765,4469.2,4469.1,0.001]
[1759893295437,28.53741765,4469.2,4469.1,0.001]
[1759893295741,22.12941765,4469.2,4469.1,0.001]
[1759893295916,19.06941765,4469.2,4469.1,0.001]
[1759893296941,18.98941765,4469.2,4469.1,0.001]
[1759893297810,21.60253692,4469.2,4469.1,0.001]
[1759893298214,22.06603692,4469.2,4469.1,0.001]
[1759893298533,4.62103692,4469.2,4469.1,0.001]
[1759893298718,16.58203692,4469.2,4469.1,0.001]
[1759893299027,4.15753692,4469.2,4469.1,0.001]
[1759893299326,4.18550613,4469.2,4469.1,0.001]
[1759893299902,31.75012986,4469.2,4469.1,0.001]
[1759893300108,31.72216065,4469.2,4469.1,0.001]
[1759893301326,27.25251765,4469.2,4469.1,0.001]
[1759893301654,20.65400001,4469.2,4469.1,0.001]
[1759893301954,19.79700001,4469.2,4469.1,0.001]
[1759893302144,1.92000001,4469.2,4469.1,0.001]
[1759893302725,1e-08,4469.2,4469.1,0.22951428]
[1759893302962,1e-08,4469.2,4469.1,2.86517269]
[1759893303247,1e-08,4469.2,4469.1,2.85395841]
[1759893303424,1e-08,4469.2,4469.1,2.86517269]
[1759893303754,1e-08,4469.2,4469.1,17.36517269]
[1759893303949,1e-08,4469.2,4469.1,17.35395841]
[1759893305142,1e-08,4469.2,4469.1,17.13665841]
[1759893305321,1e-08,4469.2,4469.1,17.35395841]
[1759893308859,1e-08,4469.2,4469.1,15.00517143]
[1759893309223,1e-08,4469.2,4469.1,17.24275841]
[1759893311360,1e-08,4469.2,4469.1,17.87635841]
[1759893312120,1e-08,4469.2,4469.1,19.79635841]
[1759893312355,1e-08,4469.8,4469.7,2.87088661]
[1759893312536,1e-08,4469.8,4469.7,7.62018204]
[1759893312861,1e-08,4469.8,4469.7,7.82627527]
[1759893313028,1e-08,4469.8,4469.7,22.32627527]
[1759893317759,1e-08,4469.8,4469.7,17.02437527]
[1759893317958,1e-08,4469.8,4469.7,14.78708866]
[1759893318183,1e-08,4469.8,4469.7,2.53]
[1759893318568,1e-08,4469.8,4469.7,17.03]
[1759893318768,1e-08,4469.8,4469.7,19.26728661]
[1759893318969,1e-08,4469.8,4469.7,19.59578661]
[1759893320392,1e-08,4469.8,4469.7,19.37848661]
[1759893320598,1e-08,4469.8,4469.7,19.59578661]
[1759893321195,1e-08,4469.8,4469.7,19.37848661]
[1759893322486,1e-08,4469.8,4469.7,17.1412]
[1759893323290,1e-08,4469.8,4469.7,19.37848661]
[1759893324196,1e-08,4469.8,4469.7,19.59578661]
[1759893324909,1e-08,4469.8,4469.7,19.37848661]
[1759893325798,1e-08,4469.8,4469.7,4.87848661]
[1759893326487,1e-08,4469.8,4469.7,19.37848661]
[1759893326888,1e-08,4469.8,4469.7,20.93853145]
[1759893329394,1e-08,4469.8,4469.7,6.43853145]
[1759893329786,1e-08,4469.8,4469.7,20.93853145]
[1759893330712,1e-08,4469.8,4469.7,17.1412]
[1759893331218,0.46910001,4469.8,4469.7,2.6412]
[1759893331420,1e-08,4469.8,4469.7,2.6402]
[1759893335902,0.46910001,4469.8,4469.7,2.6402]
[1759893336105,0.46910001,4469.8,4469.7,2.529]
[1759893336106,0.49706546,4469.8,4469.7,2.529]
[1759893338106,0.46910001,4469.8,4469.7,2.529]
[1759893338443,2.70633657,4469.8,4469.7,2.529]
[1759893338636,0.46910001,4469.8,4469.7,2.529]
[1759893341549,1e-08,4469.8,4469.7,2.529]
[1759893343958,1e-08,4469.8,4469.7,2.6402]
[1759893344654,1e-08,4469.8,4469.7,0.1112]
[1759893344868,2.73110202,4469.8,4469.7,2.6392]
[1759893345152,2.73110202,4469.8,4469.7,2.528]
[1759893345538,2.73110202,4469.8,4469.1,0.001]
[1759893345539,2.23739889,4469.5,4469.1,0.001]
[1759893345745,0.02796795,4469.4,4469.1,0.001]
[1759893345968,2.23748685,4469.3,4469.1,0.001]
[1759893346170,0.02796921,4469.2,4469.1,0.001]
[1759893346345,2.41386921,4469.2,4469.1,0.001]
[1759893346674,4.65140612,4469.2,4469.1,0.001]
[1759893346853,4.62343691,4469.2,4469.1,0.001]
[1759893349777,2.23748685,4469.3,4469.1,0.001]
[1759893349778,1.92,4469.3,4469.1,0.001]
[1759893349952,4.65140612,4469.2,4469.1,0.001]
[1759893350154,4.62343691,4469.2,4469.1,0.001]
[1759893352649,2.69203691,4469.2,4469.1,0.001]
[1759893352849,2.72000612,4469.2,4469.1,0.001]
[1759893355776,2.26550612,4469.2,4469.1,0.001]
[1759893355982,2.72000612,4469.2,4469.1,0.001]
[1759893357773,0.48246921,4469.2,4469.1,0.001]
[1759893357976,2.52800001,4469.8,4469.1,0.001]
[1759893357977,2.3745,4469.7,4469.1,0.001]
[1759893358280,2.23753691,4469.2,4469.1,0.001]
[1759893358875,4.61203691,4469.2,4469.1,0.001]
[1759893360183,2.3745,4469.2,4469.1,0.001]
[1759893360391,1.92,4469.2,4469.1,0.001]
[1759893360572,4.15753691,4469.2,4469.1,0.001]
[1759893360979,4.18550612,4469.2,4469.1,0.001]
[1759893361802,1.92,4469.2,4469.1,0.001]
[1759893362497,4.15753691,4469.2,4469.1,0.001]
[1759893362999,4.18550612,4469.2,4469.1,0.001]
[1759893363765,7.7389265,4469.2,4469.1,0.001]
[1759893365796,5.50138959,4469.2,4469.1,0.001]
[1759893365973,1.92,4469.2,4469.1,0.001]
[1759893366574,4.18550612,4469.2,4469.1,0.001]
[1759893367881,1e-08,4469.8,4469.1,0.1122]
[1759893368085,2.23728661,4469.7,4469.1,0.1122]
[1759893368288,0.23429396,4469.8,4469.1,0.1122]
[1759893368289,0.2063285,4469.6,4469.1,0.1122]
[1759893368605,0.5031892,4469.8,4469.1,0.1122]
[1759893368767,2.12634783,4469.7,4469.1,0.1122]
[1759893368969,2.23740049,4469.5,4469.1,0.1122]
[1759893369172,0.02796795,4469.4,4469.1,0.1122]
[1759893370401,2.23753691,4469.2,4469.1,0.001]
[1759893370606,2.26550612,4469.2,4469.1,0.001]
[1759893370807,2.72000612,4469.2,4469.1,0.001]
[1759893372578,4.64000612,4469.2,4469.1,0.001]
[1759893372779,4.61203691,4469.2,4469.1,0.001]
[1759893375312,4.81871932,4469.2,4469.1,0.001]
[1759893375722,2.58118241,4469.2,4469.1,0.001]
[1759893376090,4.81871932,4469.2,4469.1,0.001]
[1759893376294,4.81866696,4469.2,4469.1,0.001]
[1759893377295,5.29486328,4469.2,4469.1,0.001]
[1759893377693,5.29495774,4469.2,4469.1,0.001]
[1759893381820,3.05742083,4469.2,4469.1,0.001]
[1759893382121,2.58122451,4469.2,4469.1,0.001]
[1759893382423,2.58125627,4469.2,4469.1,0.001]
[1759893382608,5.29516756,4469.2,4469.1,0.001]
[1759893383991,4.84066756,4469.2,4469.1,0.001]
[1759893384392,5.29026756,4469.2,4469.1,0.001]
[1759893385498,8.41715715,4469.2,4469.1,0.001]
[1759893388995,31.62080015,4469.2,4469.1,0.001]
[1759893389826,35.37586813,4469.2,4469.1,0.001]
[1759893390032,34.78040015,4469.2,4469.1,0.001]
[1759893390602,4.79118698,4469.1,4468.6,0.001]
[1759893390915,31.12191986,4468.7,4468.6,0.001]
[1759893391158,34.33105051,4468.7,4468.6,0.001]
[1759893391379,35.37524091,4468.7,4468.6,0.001]
[1759893391655,34.78065051,4468.7,4468.6,0.001]
[1759893392223,35.37493978,4468.7,4468.6,0.001]
[1759893393344,34.78065051,4468.7,4468.6,0.001]
[1759893393528,35.22946085,4468.7,4468.6,0.001]
[1759893395335,35.8230144,4468.7,4468.6,0.001]
[1759893396230,35.22880134,4468.7,4468.6,0.001]
[1759893397856,38.35569093,4468.7,4468.6,0.001]
[1759893398459,25.4416306,4468.3,4468.2,0.001]
[1759893398631,34.92461353,4468.3,4468.2,0.001]
[1759893398960,27.36218168,4467.2,4467.1,0.01]
[1759893399162,33.01607127,4467.2,4467.1,0.01]
[1759893399456,33.46567127,4467.2,4467.1,0.01]
[1759893400037,34.09927127,4467.2,4467.1,0.01]
[1759893400639,34.77880765,4467.2,4467.1,0.01]
[1759893401441,34.30494097,4467.2,4467.1,0.01]
[1759893402284,34.09927127,4467.2,4467.1,0.01]
[1759893402428,34.30473734,4467.2,4467.1,0.01]
[1759893403261,34.09927127,4467.2,4467.1,0.01]
[1759893404272,31.57227127,4467.2,4467.1,0.01]
[1759893404574,34.09927127,4467.2,4467.1,0.01]
[1759893406269,37.22616086,4467.2,4467.1,0.01]
[1759893406470,4.79243938,4466.6,4466.3,0.001]
[1759893406671,2.87253963,4466.4,4466.3,0.001]
[1759893406872,27.36268289,4466.2,4466.1,0.011]
[1759893407075,33.01657248,4466.2,4466.1,0.011]
[1759893407279,33.44557248,4466.2,4466.1,0.011]
[1759893407854,25.123643,4466.2,4466.1,0.011]
[1759893408065,0.1112,4466.3,4466.1,0.011]
[1759893408386,0.02798799,4466.2,4466.1,0.011]
[1759893408586,0.45698799,4466.2,4466.1,0.011]
[1759893408960,0.02798799,4466.2,4466.1,0.011]
[1759893410586,2.26702788,4466.2,4466.1,0.011]
[1759893411088,0.45948799,4466.2,4466.1,0.011]
[1759893411472,2.69852788,4466.2,4466.1,0.011]
[1759893412558,0.45948799,4466.2,4466.1,0.011]
[1759893412960,2.69852788,4466.2,4466.1,0.011]
[1759893413160,0.45948799,4466.2,4466.1,0.011]
[1759893413588,2.69852788,4466.2,4466.1,0.011]
[1759893414187,0.45948799,4466.2,4466.1,0.011]
[1759893414595,2.69852788,4466.2,4466.1,0.011]
[1759893416997,4.61852788,4466.2,4466.1,0.011]
[1759893417199,4.59053989,4466.2,4466.1,0.011]
[1759893417384,1.92,4466.2,4466.1,0.011]
[1759893417585,1.94798799,4466.2,4466.1,0.011]
[1759893417785,0.1112,4466.9,4466.1,0.1222]
[1759893418096,0.02798423,4466.8,4466.1,0.1222]
[1759893418294,1.94798423,4466.8,4466.1,0.1222]
[1759893418595,1.94798423,4466.8,4466.1,0.011]
[1759893418596,2.23903989,4466.2,4466.1,0.011]
[1759893418897,2.26702788,4466.2,4466.1,0.011]
[1759893419075,2.69852788,4466.2,4466.1,0.011]
[1759893419486,0.45948799,4466.2,4466.1,0.011]
[1759893419875,2.69852788,4466.2,4466.1,0.011]
[1759893420996,32.56356824,4466.2,4466.1,0.011]
[1759893421199,32.53558025,4466.2,4466.1,0.011]
[1759893421408,34.90429631,4466.2,4466.1,0.011]
[1759893423178,11.70065331,4466.2,4466.1,0.011]
[1759893423378,34.90429631,4466.2,4466.1,0.011]
[1759893425211,31.00232366,4466.2,4466.1,0.011]
[1759893426985,28.47432366,4466.2,4466.1,0.011]
[1759893427904,6.10814077,4466.2,4466.1,0.011]
[1759893428216,5.27068066,4466.2,4466.1,0.011]
[1759893431100,3.03164077,4466.2,4466.1,0.011]
[1759893431436,2.5853127,4466.2,4466.1,0.011]
[1759893431608,4.82435259,4466.2,4466.1,0.011]
[1759893431949,5.27068066,4466.2,4466.1,0.011]
[1759893439034,34.90429631,4466.2,4466.1,0.011]
[1759893443019,35.53789631,4466.2,4466.1,0.011]
[1759893443218,31.63592366,4466.2,4466.1,0.011]
[1759893443808,28.47432366,4466.2,4466.1,0.011]
[1759893444015,31.00232366,4466.2,4466.1,0.011]
[1759893444216,28.47432366,4466.2,4466.1,0.011]
[1759893445828,17.17618066,4466.2,4466.1,0.011]
[1759893446026,17.62148066,4466.2,4466.1,0.011]
[1759893447022,17.35548066,4466.2,4466.1,0.011]
[1759893447224,4.83918066,4466.2,4466.1,0.011]
[1759893447645,5.28448066,4466.2,4466.1,0.011]
[1759893448841,4.83918066,4466.2,4466.1,0.011]
[1759893449044,2.60014077,4466.2,4466.1,0.011]
[1759893449360,2.1538127,4466.2,4466.1,0.011]
[1759893449564,2.5991127,4466.2,4466.1,0.011]
[1759893450121,2.1538127,4466.2,4466.1,0.011]
[1759893450539,0.20582471,4466.2,4466.1,0.011]
[1759893450716,0.002,4466.3,4466.1,0.1222]
[1759893450939,0.002,4466.3,4466.1,0.74853135]
[1759893451636,0.002,4466.3,4466.2,0.01125111]
[1759893451945,0.002,4466.3,4466.2,2.580791]
[1759893454433,0.002,4466.3,4466.2,5.108791]
[1759893454659,0.002,4466.3,4466.2,5.09753989]
[1759893454953,0.002,4466.3,4466.2,5.89494036]
[1759893455253,0.002,4466.3,4466.2,20.39494036]
[1759893455938,0.002,4466.3,4466.2,20.17564036]
[1759893456651,0.002,4466.3,4466.2,17.93660047]
[1759893458255,0.002,4466.3,4466.2,20.17564036]
[1759893460027,0.002,4466.3,4466.2,17.93660047]
[1759893460623,0.462,4466.3,4466.2,2.6392]
[1759893460865,2.70098976,4466.3,4466.2,2.528]
[1759893461531,0.462,4466.3,4466.2,2.528]
[1759893461731,0.48998737,4466.3,4466.2,2.528]
[1759893461938,0.002,4466.3,4466.2,2.528]
[1759893462445,0.002,4466.3,4466.2,5.58647795]
[1759893462645,0.002,4466.3,4466.2,5.09753989]
[1759893464559,0.002,4466.3,4466.2,19.59753989]
[1759893466286,0.002,4466.3,4466.2,22.15113989]